bitfinex-derivatives/quotes_ETHF0:USTF0_20250704
["timestamp","ask_amount","ask_price","bid_price","bid_amount"]
[1751600401379,0.77414,2582.6,2582.5,5.80899794]
[1751600401585,0.77417,2582.5,2582.3,7.03954794]
[1751600401778,0.77417,2582.5,2582.4,0.74736]
[1751600401977,0.77417,2582.5,2582.4,2.87366]
[1751600403683,0.7741,2582.8,2582.7,0.77411]
[1751600403882,0.7741,2582.8,2582.7,4.15840161]
[1751600404883,0.7741,2582.8,2582.7,5.44640161]
[1751600406482,0.7741,2582.8,2582.7,4.67229161]
[1751600407281,0.7741,2582.8,2582.7,5.44640161]
[1751600408985,3.2078,2582.9,2582.7,5.44640161]
[1751600408986,3.98187,2582.9,2582.8,0.77408]
[1751600409186,3.98187,2582.9,2582.8,2.86244]
[1751600409387,3.98187,2582.9,2582.8,2.08836]
[1751600413987,0.77407,2582.9,2582.8,2.08836]
[1751600414988,0.77407,2582.9,2582.8,2.86244]
[1751600416988,0.77407,2582.9,2582.8,2.08836]
[1751600419188,0.77407,2582.9,2582.8,2.86244]
[1751600419387,0.77407,2582.9,2582.8,2.08836]
[1751600420794,0.77407,2582.9,2582.8,2.86244]
[1751600421092,0.77407,2582.9,2582.8,2.08836]
[1751600423890,0.77407,2582.9,2582.8,0.74736]
[1751600424497,0.77407,2582.9,2582.8,1.52144]
[1751600424994,0.77407,2582.9,2582.8,0.74736]
[1751600425496,0.77407,2582.9,2582.8,2.89044]
[1751600426595,3.2078,2583.3,2582.8,4.75329161]
[1751600426797,0.774,2583.1,2583.0,3.41093161]
[1751600426993,0.774,2583.1,2583.0,4.77993161]
[1751600434000,3.2078,2583.2,2583.1,0.77399]
[1751600434298,3.2078,2583.2,2583.1,2.91145]
[1751600434501,0.7739,2583.4,2583.3,0.77392]
[1751600434699,0.7739,2583.4,2583.3,1.52128]
[1751600435188,0.7739,2583.4,2583.3,2.91138]
[1751600435591,0.7739,2583.4,2583.3,2.13746]
[1751600438002,3.9817,2583.4,2583.3,2.13746]
[1751600442597,3.9817,2583.4,2583.3,1.3901]
[1751600442804,3.9817,2583.4,2583.3,2.13746]
[1751600446603,3.9817,2583.4,2583.3,2.91139]
[1751600447104,3.9817,2583.4,2583.3,2.13746]
[1751600447408,3.9817,2583.4,2583.3,2.91139]
[1751600447904,3.2078,2583.4,2583.3,2.91139]
[1751600448206,3.9817,2583.4,2583.3,2.91139]
[1751600448505,3.2078,2583.4,2583.3,2.91139]
[1751600449101,3.9817,2583.4,2583.3,2.91139]
[1751600449606,3.2078,2583.4,2583.3,2.91139]
[1751600449808,3.9817,2583.4,2583.3,2.91139]
[1751600451105,3.9817,2583.4,2583.3,2.13746]
[1751600452010,3.9817,2583.4,2583.3,2.91139]
[1751600453610,3.9817,2583.4,2583.2,0.6597]
[1751600453611,3.2078,2583.4,2583.0,0.6488]
[1751600453811,0.77399,2583.2,2583.1,0.74736]
[1751600454211,0.77399,2583.2,2583.1,1.3267]
[1751600454713,0.77399,2583.2,2583.1,2.07406]
[1751600455414,0.77399,2583.2,2583.1,2.84805]
[1751600456813,0.6967,2583.3,2583.2,0.77396]
[1751600457016,0.6967,2583.3,2583.2,1.52132]
[1751600457213,0.6967,2583.3,2583.2,0.77396]
[1751600458217,3.2078,2583.4,2583.2,0.77396]
[1751600458218,38.2218,2583.4,2583.3,0.77393]
[1751600458516,38.2218,2583.4,2583.3,2.89989]
[1751600458716,38.2218,2583.4,2583.3,2.15253]
[1751600459416,38.99572,2583.4,2583.3,2.15253]
[1751600461117,38.99572,2583.4,2583.3,1.3786]
[1751600462519,38.99572,2583.4,2583.3,2.15253]
[1751600463220,38.99572,2583.4,2583.3,1.3786]
[1751600465519,38.99572,2583.4,2583.3,2.15253]
[1751600466519,3.2078,2583.4,2583.3,2.89989]
[1751600466722,3.2078,2583.4,2583.3,5.53682161]
[1751600467022,35.013,2583.5,2583.4,0.7739]
[1751600467214,35.013,2583.5,2583.4,3.56616]
[1751600468120,35.78687,2583.5,2583.4,3.56616]
[1751600468319,35.78687,2583.5,2583.4,2.79226]
[1751600471321,35.78687,2583.5,2583.4,3.56616]
[1751600471521,35.013,2583.5,2583.4,3.56616]
[1751600472617,35.013,2583.5,2583.4,2.8188]
[1751600472925,35.78686,2583.6,2583.5,0.77387]
[1751600473222,35.78686,2583.6,2583.5,2.82143]
[1751600473521,35.78686,2583.6,2583.5,3.49233]
[1751600475423,35.78686,2583.6,2583.5,2.71846]
[1751600477321,35.78686,2583.6,2583.5,0.74736]
[1751600478624,35.78686,2583.6,2583.5,1.52123]
[1751600480125,35.78686,2583.6,2583.5,0.74736]
[1751600482031,38.99466,2583.6,2583.5,0.74736]
[1751600482428,38.99266,2583.6,2583.5,0.74736]
[1751600482631,3.98166,2583.6,2583.5,0.74736]
[1751600482830,38.99266,2583.6,2583.5,0.74736]
[1751600483033,3.98166,2583.6,2583.5,0.74736]
[1751600483230,38.99266,2583.6,2583.5,0.74736]
[1751600484426,0.7739,2583.4,2583.3,1.3646]
[1751600484932,0.7739,2583.4,2583.3,2.11196]
[1751600485833,0.7739,2583.4,2583.3,2.88589]
[1751600488232,0.7739,2583.4,2583.3,3.54889]
[1751600488632,0.7739,2583.4,2583.3,6.18582161]
[1751600488834,0.7739,2583.4,2583.3,6.18580161]
[1751600489430,38.2178,2583.6,2583.3,6.18580161]
[1751600489431,0.77389,2583.5,2583.4,0.77389]
[1751600489631,38.99166,2583.6,2583.5,1.52123]
[1751600489832,3.2078,2583.6,2583.5,3.63031861]
[1751600490831,3.98164,2583.6,2583.5,3.63031861]
[1751600491235,0.77384,2583.6,2583.5,3.63031861]
[1751600491738,0.77384,2583.6,2583.5,4.15726815]
[1751600492034,3.2078,2583.9,2583.5,3.38339815]
[1751600492232,3.2078,2583.9,2583.8,1.52114]
[1751600492632,3.2078,2583.9,2583.8,3.53294]
[1751600493032,3.98155,2583.9,2583.8,3.53294]
[1751600493231,3.2078,2583.9,2583.8,3.53294]
[1751600493831,3.98155,2583.9,2583.8,3.53294]
[1751600494739,3.2078,2583.9,2583.8,3.53294]
[1751600497636,0.77371,2584.1,2584.0,0.77372]
[1751600497932,0.77371,2584.1,2584.0,4.15711815]
[1751600500839,0.77371,2584.1,2584.0,3.38339815]
[1751600501340,0.77371,2584.1,2584.0,4.73999815]
[1751600501644,0.77371,2584.1,2584.0,5.51371815]
[1751600502041,3.98148,2584.2,2584.1,0.77369]
[1751600502238,3.98148,2584.2,2584.1,2.13029]
[1751600502743,3.98148,2584.2,2584.1,1.3566]
[1751600508143,0.77369,2584.1,2584.0,3.40975815]
[1751600508345,0.77369,2584.1,2584.0,2.63603815]
[1751600508546,0.77369,2584.1,2584.0,3.38339815]
[1751600508950,0.77369,2584.1,2584.0,4.15711815]
[1751600509247,0.77369,2584.1,2584.0,5.50461815]
[1751600510049,0.77369,2584.1,2584.0,4.73089815]
[1751600511252,0.77369,2584.1,2584.0,5.50461815]
[1751600511454,0.77369,2584.1,2584.0,4.73089815]
[1751600511752,0.77369,2584.1,2584.0,5.50461815]
[1751600512851,0.77369,2584.1,2584.0,4.73089815]
[1751600513953,0.77369,2584.1,2584.0,5.50461815]
[1751600514147,0.77369,2584.1,2584.0,4.73089815]
[1751600514544,0.77369,2584.1,2584.0,5.50461815]
[1751600515555,0.77369,2584.1,2584.0,4.73089815]
[1751600517955,0.77369,2584.1,2584.0,5.50461815]
[1751600519763,0.77369,2584.1,2584.0,4.9768268]
[1751600520762,3.98147,2584.2,2584.1,0.77369]
[1751600520968,3.98147,2584.2,2584.1,2.86965]
[1751600521267,3.98147,2584.2,2584.1,1.3486]
[1751600522170,4.98979457,2584.2,2584.1,1.3486]
[1751600522869,4.98979457,2584.2,2584.1,2.12229]
[1751600523065,3.98147,2584.2,2584.1,2.12229]
[1751600525267,3.2078,2584.2,2584.1,2.86965]
[1751600526273,3.98146,2584.2,2584.1,2.86965]
[1751600526475,3.2078,2584.2,2584.1,2.86965]
[1751600526673,3.98146,2584.2,2584.1,2.86965]
[1751600526968,0.77366,2584.2,2584.1,2.86965]
[1751600529468,0.77365,2584.3,2584.1,2.86965]
[1751600529674,0.77365,2584.3,2584.2,2.8556068]
[1751600529878,0.77365,2584.3,2584.2,4.9077068]
[1751600530276,0.77365,2584.3,2584.2,5.6813668]
[1751600530971,0.77365,2584.3,2584.2,4.9077068]
[1751600532478,0.77365,2584.3,2584.2,5.6813668]
[1751600535281,0.77365,2584.3,2584.2,4.9077068]
[1751600538381,0.77365,2584.3,2584.2,5.6813668]
[1751600540081,0.77365,2584.3,2584.2,4.9077068]
[1751600542685,0.77365,2584.3,2584.2,5.6813668]
[1751600542887,0.77365,2584.3,2584.2,4.9077068]
[1751600549296,3.98145,2584.3,2584.2,4.9077068]
[1751600551101,3.98145,2584.3,2584.2,5.6813668]
[1751600551302,3.2078,2584.3,2584.2,5.6813668]
[1751600551806,3.98143,2584.3,2584.2,5.6813668]
[1751600551995,3.2078,2584.3,2584.2,5.6813668]
[1751600552896,0.77363,2584.4,2584.2,5.6813668]
[1751600553095,3.98143,2584.4,2584.3,2.04136]
[1751600553402,3.2078,2584.7,2584.3,2.04136]
[1751600553600,0.77354,2584.6,2584.5,2.1082468]
[1751600553898,0.77354,2584.6,2584.5,3.4022468]
[1751600554092,0.77354,2584.6,2584.5,4.1496068]
[1751600554297,3.98133,2584.7,2584.6,0.77354]
[1751600554496,4.98948436,2584.7,2584.6,2.8149]
[1751600554697,4.98948436,2584.7,2584.6,3.5146]
[1751600556309,4.98948436,2584.7,2584.6,2.74106]
[1751600557004,4.98924365,2584.7,2584.6,2.74106]
[1751600557804,3.98133,2584.7,2584.6,2.74106]
[1751600558801,0.77353,2584.7,2584.6,2.74106]
[1751600559005,3.98133,2584.7,2584.6,2.74106]
[1751600559302,0.77353,2584.7,2584.6,2.74106]
[1751600559508,3.98133,2584.7,2584.6,3.5146]
[1751600559804,4.98902468,2584.7,2584.6,3.5146]
[1751600560006,4.98902468,2584.7,2584.6,2.74106]
[1751600560208,3.98133,2584.7,2584.6,2.74106]
[1751600561712,3.98133,2584.7,2584.6,3.5146]
[1751600562109,0.77353,2584.7,2584.6,3.5146]
[1751600562410,3.98133,2584.7,2584.6,3.5146]
[1751600562604,3.98133,2584.7,2584.6,2.76724]
[1751600562811,0.77353,2584.7,2584.6,3.5146]
[1751600563010,3.98133,2584.7,2584.6,3.5146]
[1751600565411,3.98133,2584.7,2584.6,2.74106]
[1751600567907,3.98133,2584.7,2584.6,3.5146]
[1751600569713,3.98133,2584.7,2584.6,2.74106]
[1751600570212,1.93386,2584.6,2584.0,3.07267093]
[1751600570416,2.8819368,2584.1,2584.0,3.82003093]
[1751600570711,2.8819368,2584.1,2584.0,0.74736]
[1751600570912,3.5825368,2584.1,2584.0,0.74736]
[1751600571508,1.47429,2584.1,2584.0,0.74736]
[1751600572514,1.47429,2584.1,2584.0,2.8556068]
[1751600572715,1.47429,2584.1,2584.0,4.2414068]
[1751600573815,1.47429,2584.1,2584.0,2.13316]
[1751600576018,0.77375,2583.9,2583.7,0.7738]
[1751600576507,0.77375,2583.9,2583.8,0.74736]
[1751600578022,0.77375,2583.9,2583.8,1.52114]
[1751600578228,0.77375,2583.9,2583.8,2.85474]
[1751600580530,0.77375,2583.9,2583.8,2.08096]
[1751600581931,0.77375,2583.9,2583.8,2.85474]
[1751600582123,0.77375,2583.9,2583.8,2.08096]
[1751600582928,0.77375,2583.9,2583.8,2.85474]
[1751600592636,0.77375,2583.9,2583.8,2.10738]
[1751600592837,0.77375,2583.9,2583.8,2.85474]
[1751600593527,0.77375,2583.9,2583.8,5.49025643]
[1751600593731,0.77375,2583.9,2583.8,4.96327578]
[1751600596340,0.77375,2583.9,2583.8,4.18949578]
[1751600597341,0.77375,2583.9,2583.8,4.96327578]
[1751600601146,34.988,2584.0,2583.9,0.77375]
[1751600601342,34.988,2584.0,2583.9,2.05165]
[1751600601545,34.988,2584.0,2583.9,2.69165]
[1751600601744,35.76172,2584.0,2583.9,2.69165]
[1751600603744,45.48209,2584.1,2584.0,0.77372]
[1751600603938,3.2078,2584.1,2584.0,3.62961578]
[1751600604143,3.2078,2584.1,2584.0,5.59061578]
[1751600605446,3.98149,2584.1,2584.0,5.59061578]
[1751600605640,3.2078,2584.1,2584.0,5.59061578]
[1751600605837,35.76168,2584.2,2584.1,0.77369]
[1751600606041,3.2078,2584.4,2584.3,0.77363]
[1751600606242,10.84,2584.5,2584.4,0.7736]
[1751600606448,3.2078,2584.7,2584.4,1.43026]
[1751600606645,3.2078,2584.7,2584.6,1.5209]
[1751600606950,4.21595928,2584.7,2584.6,1.5209]
[1751600607250,3.2078,2584.7,2584.6,2.9052]
[1751600608348,3.98131,2584.7,2584.6,2.9052]
[1751600609849,3.98131,2584.7,2584.6,5.53916228]
[1751600612544,3.98131,2584.7,2584.6,4.76562228]
[1751600613549,3.98131,2584.7,2584.6,5.53916228]
[1751600614651,3.98131,2584.7,2584.6,4.76562228]
[1751600616150,3.98131,2584.7,2584.6,5.53916228]
[1751600616550,3.98131,2584.7,2584.6,4.76562228]
[1751600616753,0.77351,2584.7,2584.6,5.53916228]
[1751600616954,0.77351,2584.7,2584.6,4.76562228]
[1751600617154,0.77351,2584.7,2584.6,5.53916228]
[1751600622756,3.2078,2584.8,2584.7,0.77351]
[1751600623057,38.1878,2584.8,2584.7,2.81377]
[1751600624054,38.96128,2584.8,2584.7,2.81377]
[1751600627363,38.96128,2584.8,2584.7,2.04026]
[1751600627962,38.96128,2584.8,2584.7,2.81377]
[1751600628565,38.96128,2584.8,2584.7,2.04026]
[1751600628759,38.95928,2584.8,2584.7,2.81377]
[1751600629665,38.95928,2584.8,2584.7,2.04026]
[1751600629864,38.95928,2584.8,2584.7,4.14744017]
[1751600630462,0.77363,2584.3,2584.2,2.10718017]
[1751600630759,0.77369,2584.1,2584.0,7.9747511]
[1751600630964,1.41268,2584.2,2584.1,0.77369]
[1751600631463,1.41268,2584.2,2584.1,1.52105]
[1751600631864,1.41268,2584.2,2584.1,0.74736]
[1751600632165,1.41268,2584.2,2584.1,1.52105]
[1751600633367,1.41268,2584.2,2584.1,0.74736]
[1751600633966,1.41268,2584.2,2584.1,1.52105]
[1751600635568,1.41268,2584.2,2584.1,2.90685]
[1751600638868,1.41268,2584.2,2584.1,2.13316]
[1751600639468,1.41268,2584.2,2584.1,2.90685]
[1751600640769,0.77365,2584.3,2584.2,0.77366]
[1751600640968,0.77365,2584.3,2584.2,4.15618654]
[1751600641167,0.77365,2584.3,2584.2,4.80262654]
[1751600641770,0.77365,2584.3,2584.2,5.54998654]
[1751600644772,0.77365,2584.3,2584.2,4.77632654]
[1751600645473,0.77365,2584.3,2584.2,0.74736]
[1751600645662,0.77365,2584.3,2584.2,1.52102]
[1751600646372,0.77365,2584.3,2584.2,0.74736]
[1751600646673,0.77369,2584.1,2584.0,5.40286654]
[1751600647068,0.77369,2584.1,2584.0,6.15022654]
[1751600648274,0.77369,2584.1,2584.0,5.40286654]
[1751600648475,0.77369,2584.1,2584.0,4.06926654]
[1751600649171,0.77372,2584.0,2583.9,3.2078]
[1751600649473,1.41052,2584.0,2583.9,3.2078]
[1751600650270,1.41055,2584.0,2583.9,0.77375]
[1751600650670,1.41055,2584.0,2583.9,1.44445]
[1751600651075,1.41055,2584.0,2583.9,0.6707]
[1751600651276,1.41055,2584.0,2583.9,1.44445]
[1751600653475,1.41055,2584.0,2583.9,4.07961654]
[1751600653677,0.77371,2584.1,2584.0,0.77372]
[1751600653877,0.77371,2584.1,2584.0,2.13972]
[1751600654779,0.77371,2584.1,2584.0,1.366]
[1751600655270,0.77371,2584.1,2584.0,2.13972]
[1751600659679,4.66839,2584.2,2584.1,0.77369]
[1751600659878,3.98149,2584.2,2584.1,1.2947]
[1751600660176,3.98149,2584.2,2584.1,2.06839]
[1751600660377,3.98149,2584.2,2584.1,4.70355654]
[1751600660780,3.98149,2584.2,2584.1,3.92986654]
[1751600661077,3.98149,2584.2,2584.1,1.2947]
[1751600662380,38.96249,2584.2,2584.1,1.2947]
[1751600662779,38.96249,2584.2,2584.1,2.06839]
[1751600663380,38.96249,2584.2,2584.1,1.2947]
[1751600663575,3.98149,2584.2,2584.1,1.2947]
[1751600663879,38.96249,2584.2,2584.1,1.2947]
[1751600671787,38.96249,2584.2,2584.1,3.40286813]
[1751600681891,38.96249,2584.2,2584.1,1.2947]
[1751600682091,38.96249,2584.2,2584.1,3.40286813]
[1751600682286,35.75469,2584.2,2584.1,3.40286813]
[1751600683188,36.45839,2584.2,2584.1,3.40286813]
[1751600685192,36.45839,2584.2,2584.1,1.2947]
[1751600685388,36.45839,2584.2,2584.1,3.40286813]
[1751600692998,37.46769525,2584.2,2584.1,3.40286813]
[1751600694098,0.77369,2584.2,2584.1,3.40286813]
[1751600694295,35.75069,2584.2,2584.1,3.40286813]
[1751600694500,0.77369,2584.2,2584.1,3.40286813]
[1751600694801,0.77369,2584.2,2584.1,4.87875813]
[1751600695702,3.858,2584.6,2584.2,0.77365]
[1751600695894,35.98520621,2584.5,2584.4,2.85552813]
[1751600696095,36.75877621,2584.5,2584.4,2.85552813]
[1751600696294,36.75877621,2584.5,2584.4,2.10816813]
[1751600697200,36.75877621,2584.5,2584.4,2.85552813]
[1751600698201,35.74957,2584.5,2584.4,2.85552813]
[1751600698398,36.75798745,2584.5,2584.4,2.85552813]
[1751600698597,35.74957,2584.5,2584.4,2.85552813]
[1751600699306,0.77357,2584.5,2584.4,2.85552813]
[1751600699601,35.74757,2584.5,2584.4,3.62912813]
[1751600699898,0.77357,2584.5,2584.4,3.62912813]
[1751600700099,3.2078,2584.6,2584.4,2.85552813]
[1751600700299,3.2078,2584.6,2584.5,2.77826]
[1751600700498,3.2078,2584.6,2584.5,3.41236]
[1751600701295,3.98135,2584.6,2584.5,3.41236]
[1751600701496,3.98135,2584.6,2584.5,2.0177]
[1751600701704,0.77366,2584.2,2584.1,5.10699358]
[1751600701907,0.77366,2584.2,2584.1,2.0309]
[1751600702202,0.77366,2584.2,2584.1,2.77826]
[1751600702798,0.77366,2584.2,2584.1,3.41236]
[1751600707405,0.77366,2584.2,2584.1,4.18605]
[1751600707605,3.2078,2584.3,2584.2,0.77366]
[1751600707811,3.98143,2584.3,2584.2,5.43361643]
[1751600708004,0.77363,2584.3,2584.2,5.43361643]
[1751600709609,0.77363,2584.3,2584.2,4.65995643]
[1751600712607,0.77363,2584.3,2584.2,1.2775]
[1751600712911,0.77363,2584.3,2584.2,2.02486]
[1751600719518,0.77363,2584.3,2584.2,4.65995643]
[1751600724217,0.77363,2584.3,2584.2,2.02486]
[1751600724520,0.77363,2584.3,2584.2,0.74736]
[1751600728224,0.77363,2584.3,2584.2,2.85012]
[1751600728425,0.77363,2584.3,2584.2,2.07646]
[1751600731727,0.77363,2584.3,2584.2,4.71155643]
[1751600735335,0.77363,2584.3,2584.2,5.48521643]
[1751600736536,0.77363,2584.3,2584.2,4.71155643]
[1751600741343,0.77369,2584.1,2584.0,5.71119001]
[1751600741640,0.77369,2584.1,2584.0,6.35169001]
[1751600741841,0.77369,2584.1,2584.0,8.40265001]
[1751600742041,0.77369,2584.1,2584.0,5.32655643]
[1751600742643,0.77369,2584.1,2584.0,4.57919643]
[1751600742843,0.77369,2584.1,2584.0,5.32655643]
[1751600751343,0.77369,2584.1,2584.0,6.10027643]
[1751600751548,0.77369,2584.1,2584.0,5.32655643]
[1751600751752,0.77369,2584.1,2584.0,4.79949083]
[1751600753739,0.77375,2583.9,2583.8,2.80733083]
[1751600754146,0.77375,2583.9,2583.8,3.55469083]
[1751600754748,0.6453,2584.2,2583.8,4.32845083]
[1751600754942,0.77369,2584.1,2584.0,2.10803083]
[1751600755146,0.77369,2584.1,2584.0,3.42773083]
[1751600756352,0.77369,2584.1,2584.0,4.20145083]
[1751600760256,0.77369,2584.1,2584.0,3.42773083]
[1751600760456,0.77369,2584.1,2584.0,4.20145083]
[1751600760657,0.77369,2584.1,2584.0,3.42773083]
[1751600760959,0.77369,2584.1,2584.0,4.20145083]
[1751600761857,0.77369,2584.1,2584.0,3.42773083]
[1751600777673,0.77372,2584.0,2583.9,0.6563]
[1751600777873,1.41032,2584.0,2583.9,0.6563]
[1751600778075,1.41032,2584.0,2583.9,1.40366]
[1751600780684,1.41032,2584.0,2583.9,0.74736]
[1751600780872,1.41032,2584.0,2583.8,2.10803083]
[1751600780873,0.77375,2583.9,2583.8,2.10803083]
[1751600781380,0.77375,2583.9,2583.8,2.85539083]
[1751600784784,0.77375,2583.9,2583.8,0.74736]
[1751600786579,0.77384,2583.6,2583.5,0.6587]
[1751600786783,0.77384,2583.6,2583.5,0.6355]
[1751600786978,0.77384,2583.6,2583.5,1.38286]
[1751600787775,0.77384,2583.6,2583.5,3.49089083]
[1751600787979,0.77384,2583.6,2583.5,2.74426]
[1751600789886,0.7739,2583.4,2583.3,2.10803083]
[1751600790083,0.7739,2583.4,2583.3,2.79476]
[1751600790084,2.88193083,2583.4,2583.3,2.79476]
[1751600791293,6.08973083,2583.4,2583.3,2.79476]
[1751600791686,1.9349,2583.3,2582.7,3.07609358]
[1751600791886,3.98182,2583.0,2582.9,1.3455]
[1751600792389,3.98182,2583.0,2582.9,2.09286]
[1751600793192,38.95182,2583.0,2582.9,2.09286]
[1751600795192,38.95182,2583.0,2582.9,1.3455]
[1751600796799,0.77405,2582.9,2582.8,0.6395]
[1751600798295,0.77405,2582.9,2582.8,1.9616]
[1751600801196,0.77429,2582.1,2582.0,8.92185865]
[1751600801403,0.77429,2582.1,2582.0,6.55016507]
[1751600801604,0.77429,2582.1,2582.0,12.29752507]
[1751600802500,0.77429,2582.1,2582.0,13.07184507]
[1751600802696,0.77429,2582.1,2582.0,12.32448507]
[1751600802902,0.77429,2582.1,2582.0,13.07184507]
[1751600803305,0.77429,2582.1,2582.0,12.29752507]
[1751600803502,0.77429,2582.1,2582.0,7.29752507]
[1751600805000,0.77429,2582.1,2582.0,8.60742507]
[1751600805306,0.77429,2582.1,2582.0,2.76166]
[1751600805805,2.63796507,2582.2,2581.9,0.6526]
[1751600805806,0.77432,2582.0,2581.9,0.6526]
[1751600806193,0.77432,2582.0,2581.9,1.39996]
[1751600808005,1.47172,2582.0,2581.9,1.39996]
[1751600810405,1.47172,2582.0,2581.9,0.6526]
[1751600810709,0.77438,2581.8,2581.7,0.6648]
[1751600810904,6.62014507,2581.8,2581.7,0.6648]
[1751600811104,0.77447,2581.5,2581.4,1.3401]
[1751600811301,1.93629,2581.4,2580.6,3.07609358]
[1751600811608,3.2078,2581.0,2580.8,0.74736]
[1751600811809,41.57465,2580.9,2580.8,0.74736]
[1751600812009,0.77468,2580.8,2580.7,1.3057]
[1751600812412,0.77468,2580.8,2580.7,2.05306]
[1751600812913,46.78668,2580.8,2580.7,2.05306]
[1751600814912,49.99448,2580.8,2580.7,2.05306]
[1751600815411,3.98248,2580.8,2580.7,2.05306]
[1751600815611,50.04848,2580.8,2580.7,2.05306]
[1751600818310,3.98248,2580.8,2580.7,2.05306]
[1751600818513,50.04948,2580.8,2580.7,2.05306]
[1751600819010,39.14948,2580.8,2580.7,2.05306]
[1751600819217,35.94168,2580.8,2580.7,2.05306]
[1751600821512,41.78744507,2580.8,2580.7,2.05306]
[1751600821711,41.78744507,2580.8,2580.7,0.74736]
[1751600821919,0.7748,2580.4,2580.3,1.367]
[1751600822115,6.62056507,2580.4,2580.3,1.367]
[1751600822315,6.62056507,2580.4,2580.3,2.11436]
[1751600824320,0.77495,2579.9,2579.8,0.6356]
[1751600824821,0.77495,2579.9,2579.8,1.38296]
[1751600825016,0.77495,2579.9,2579.8,2.67686]
[1751600827519,39.16473,2580.0,2579.8,3.45182]
[1751600827822,3.98273,2580.0,2579.9,4.16027507]
[1751600828025,3.98273,2580.0,2579.9,5.56097507]
[1751600829327,3.98273,2580.0,2579.9,2.92301]
[1751600829623,3.98273,2580.0,2579.9,2.14806]
[1751600836830,0.77493,2580.0,2579.9,2.14806]
[1751600837130,3.98273,2580.0,2579.9,2.14806]
[1751600842034,3.2078,2580.0,2579.4,3.2078]
[1751600842241,47.52816,2579.9,2579.6,2.055]
[1751600842541,0.77498,2579.8,2579.7,1.3578]
[1751600843041,1.45617,2579.9,2579.7,2.10516]
[1751600843340,0.77498,2579.8,2579.7,1.3578]
[1751600843540,0.77498,2579.8,2579.7,0.775]
[1751600843741,0.77498,2579.8,2579.7,1.52236]
[1751600845951,0.77497,2579.9,2579.8,0.77496]
[1751600846450,0.77497,2579.9,2579.8,1.52232]
[1751600850348,3.2078,2580.0,2579.9,0.77495]
[1751600850549,3.2078,2580.0,2579.9,1.52231]
[1751600850745,11.5513,2580.1,2580.0,0.77492]
[1751600850951,3.2078,2580.6,2580.4,0.77477]
[1751600851147,3.2078,2580.6,2580.5,0.77477]
[1751600851346,3.2078,2580.6,2580.5,2.90923]
[1751600853559,0.77471,2580.7,2580.6,0.77474]
[1751600853757,0.77471,2580.7,2580.6,1.5221]
[1751600854259,0.6361,2580.8,2580.7,0.77471]
[1751600854460,1.72451968,2580.8,2580.7,1.52207]
[1751600854656,2.49919968,2580.8,2580.6,0.77472]
[1751600854858,1.41078,2580.8,2580.7,0.74736]
[1751600855062,2.49918808,2580.8,2580.7,0.74736]
[1751600855262,0.77474,2580.6,2580.5,2.16185]
[1751600855665,0.77474,2580.6,2580.5,2.90921]
[1751600856365,0.77473,2580.7,2580.5,2.90921]
[1751600856568,0.77473,2580.7,2580.6,0.77474]
[1751600856766,0.77473,2580.7,2580.6,1.5221]
[1751600862668,0.77473,2580.7,2580.6,0.77474]
[1751600862967,0.77473,2580.7,2580.6,1.5221]
[1751600868366,0.77473,2580.7,2580.6,0.74736]
[1751600871071,0.77473,2580.7,2580.6,1.5221]
[1751600871267,0.77473,2580.7,2580.6,2.9034]
[1751600871465,0.77473,2580.7,2580.6,2.12866]
[1751600871770,0.77473,2580.7,2580.6,2.9034]
[1751600873165,0.77473,2580.7,2580.6,2.12866]
[1751600874075,0.77473,2580.7,2580.6,2.9034]
[1751600874377,0.77473,2580.7,2580.6,2.12866]
[1751600877972,6.48186507,2580.8,2580.4,0.77479]
[1751600878169,2.63796507,2580.6,2580.5,0.74736]
[1751600878476,3.41270507,2580.6,2580.5,0.74736]
[1751600878674,3.41270507,2580.6,2580.3,2.80591]
[1751600878675,2.63796507,2580.6,2580.3,2.80591]
[1751600878875,0.7748,2580.4,2580.3,2.80591]
[1751600879266,0.7748,2580.4,2580.3,3.55327]
[1751600879471,1.42648,2580.5,2580.3,3.55327]
[1751600879672,1.42648,2580.5,2580.4,0.74736]
[1751600879977,1.42648,2580.5,2580.4,1.52216]
[1751600880877,1.42648,2580.5,2580.4,0.74736]
[1751600881477,0.7748,2580.4,2580.3,0.77481]
[1751600881978,3.41276507,2580.4,2580.2,3.98264]
[1751600882178,3.41276507,2580.4,2580.3,0.74736]
[1751600882379,2.63796507,2580.4,2580.0,2.0628]
[1751600882579,2.63796507,2580.2,2580.1,1.52223]
[1751600882881,0.77483,2580.3,2580.1,1.52223]
[1751600883078,0.77483,2580.3,2580.1,0.77487]
[1751600883269,0.77483,2580.3,2580.2,0.77486]
[1751600883675,50.67728,2580.5,2580.4,0.7748]
[1751600883975,51.76523032,2580.5,2580.4,0.74736]
[1751600884176,50.67728,2580.5,2580.3,1.47241]
[1751600884381,50.67728,2580.5,2580.4,0.74736]
[1751600884978,50.67728,2580.5,2580.3,1.47241]
[1751600885172,50.67728,2580.5,2580.4,0.74736]
[1751600886671,0.7748,2580.4,2580.3,1.47241]
[1751600887175,0.7748,2580.4,2580.3,2.21977]
[1751600892687,0.7748,2580.4,2580.3,1.47241]
[1751600892884,0.7748,2580.4,2580.3,2.21977]
[1751600893079,3.8595,2580.5,2580.4,0.7748]
[1751600893383,3.8595,2580.5,2580.4,2.81726]
[1751600893582,3.8595,2580.5,2580.4,2.0699]
[1751600894486,4.63427,2580.5,2580.4,2.0699]
[1751600896087,4.63427,2580.5,2580.4,1.2951]
[1751600896282,0.7748,2580.4,2580.3,1.47241]
[1751600896884,0.7748,2580.4,2580.3,2.21977]
[1751600899091,4.63429,2580.5,2580.4,0.7748]
[1751600899389,4.63429,2580.5,2580.4,1.52216]